Cogmind - Beta 15 @@@ ROGUE MODE // 2025.07.01 @ 12:29:29 Player: Fangrelle Result: Destroyed self with Grenade Launcher Performance ------------- Evolutions (0) 0 Regions Visited (2) 400 Robots Destroyed (38) 190 Value Destroyed (660) 660 Prototype IDs (0) 0 Alien Tech Used (0) 0 Bonus (0) 0 TOTAL SCORE: 1250 Bonus ------- None Cogmind --------- Core Integrity 0/250 Matter 175/300 Energy 100/100 System Corruption 6% Temperature Cool (0) Movement Core (1400) Ox27 Location -10/Mines Parts ------- > --- POWER (1) -------- (None) > --- PROPULSION (2) --- (None) > --- UTILITY (2) ------ Huge Storage Unit > --- WEAPON (2) ------- Grenade Launcher > --- INVENTORY (25) --- Ion Engine Ion Engine Light Treads Light Treads Wheel Wheel Improved Heat Sink Large Storage Unit High-capacity Storage Unit Visual Processing Unit Terrain Scan Processor Transport Network Coupler Weapon Shielding Light Armor Plating Hacking Suite Hacking Suite Assault Rifle Light Cannon Grenade Launcher Datajack Mining Laser Peak State ------------ > --- POWER ------------ Ion Engine > --- PROPULSION ------- Light Treads Light Treads > --- UTILITY ---------- Large Storage Unit Backup Plating I > --- WEAPON ----------- Assault Rifle Light Cannon > --- INVENTORY -------- Ion Engine Ion Engine Light Treads Light Treads Wheel Wheel Large Storage Unit Huge Storage Unit Terrain Scan Processor Weapon Shielding Hacking Suite Hacking Suite Grenade Launcher Datajack Mining Laser [Rating: 9] Favorites ----------- Power Ion Engine Engine Ion Engine Propulsion Light Treads Treads Light Treads Leg Aluminum Leg Utility Backup Plating I Storage Huge Storage Unit Protection Backup Plating I Weapon Assault Rifle Energy Gun Medium Laser Ballistic Gun Assault Rifle Ballistic Cannon Light Cannon Launcher Grenade Launcher Build | -11 -10 -10 ------- Run | Yrd Mat Min Slots Evolved . | . . . Power . | . . . Propulsion . | . . . Utility . | . . . Weapon . | . . . Parts Attached 11 | . 9 2 Power . | . . . Engine . | . . . Core . | . . . Reactor . | . . . Propulsion 4 | . 4 . Treads 4 | . 4 . Leg . | . . . Wheel . | . . . Hover . | . . . Flight . | . . . Utility 3 | . 3 . Device . | . . . Storage 2 | . 2 . Processor . | . . . Hackware . | . . . Protection 1 | . 1 . Artifact . | . . . Weapon 4 | . 2 2 Energy Gun . | . . . Energy Cannon . | . . . Ballistic Gun 1 | . 1 . Ballistic Cannon 1 | . 1 . Launcher 2 | . . 2 Special Weapon . | . . . Impact Weapon . | . . . Slashing Weapon . | . . . Piercing Weapon . | . . . Special Melee Weapon . | . . . Unidentified Prototypes . | . . . Parts Lost 6 | . 1 5 Power 1 | . . 1 Propulsion 2 | . . 2 Utility 2 | . 1 1 Weapon 1 | . . 1 Highest Loss Streak 5 | . 1 5 To Critical Strikes . | . . . Average Backups 14 | . 14 20 Power 1 | . 1 2 Propulsion 3 | . 3 4 Utility 6 | . 6 10 Weapon 2 | . 1 3 Tool/Special . | . . . Unused Backups 15 | . 3 12 Power 1 | . . 1 Propulsion . | . . . Utility 10 | . 2 8 Weapon 3 | . 1 2 Tool/Special 1 | . . 1 Average Slot Usage (%) 96 | . 96 95 Engine 13 | . 14 12 Treads 27 | . 27 26 Storage 14 | . 14 14 Protection 11 | . 10 13 Energy Gun 1 | . 1 . Ballistic Gun 19 | . 19 12 Ballistic Cannon 7 | . 7 12 Peak Build Rating 9 | . 9 9 Average Rating 8 | . 8 8 On Entrance 7 | 6 6 9 Naked Turns . | . . . Heaviest Build 91 | 14 91 91 Greatest Support 40 | 20 40 40 Greatest Overweight (x) 2 | . 2 2 Average Overweight (x) . | . . 2 Largest Inventory Capacity 25 | . 25 25 Average Capacity 18 | . 18 25 Most Carried 21 | . 19 21 Average Carried 14 | . 14 20 Final Capacity 25 | 8 25 25 Final Carried 21 | 6 19 21 Class Distribution -------------------- 100% | Mutant Dominant Class ---------------- Mutant | -10/Materials Mutant | -10/Mines Resources | -11 -10 -10 ----------- Run | Yrd Mat Min Matter Collected 820 | 199 544 77 Remotely . | . . . Salvage Created 1165 | . 1094 71 Parts 97 | . 89 8 Haulers Intercepted 2 | . 2 . Recyclers Shooed 2 | . 2 . Parts Field Recycled . | . . . Retrieved Matter . | . . . Parts Self-Destructed . | . . . Prevented . | . . . Kills | -11 -10 -10 ------- Run | Yrd Mat Min Combat Hostiles Destroyed 35 | . 17 18 Guns 18 | . 17 1 Cannons 2 | . . 2 AOE 15 | . . 15 Classes Destroyed 10 | . 9 1 Worker 3 | . 3 . Builder 3 | . 3 . Tunneler 1 | . 1 . Hauler 2 | . 2 . Recycler 2 | . 2 . Operator 4 | . 4 . Watcher 3 | . 3 . Swarmer 9 | . 6 3 Grunt 11 | . 11 . Assembled 15 | . . 15 Best Kill Streak 15 | . 10 15 Combat Bots Only 15 | . 4 15 Max Kills in Single Turn 4 | . 2 4 Gunslinging 1 | . 1 . Exploded 4 | . . 4 Melee . | . . . Uniques/NPCs Destroyed . | . . . Combat | -11 -10 -10 -------- Run | Yrd Mat Min Hostile Shots Fired 103 | . 71 32 Missed 25 | . 16 9 Hits 78 | . 55 23 Melee 5 | . . 5 Projectile 73 | . 55 18 Critical Strikes 1 | . 1 . Actively Blocked 1 | . 1 . Damage Taken 1153 | . 637 516 Core 254 | . 80 174 Absorbed by Shields . | . . . Redirected to Shielding 51 | . 51 . Core Remaining (%) 100 | 100 . . Volleys Fired 100 | . 87 13 Largest 2 | . 2 2 Hottest 70 | . 70 60 Shots Fired 199 | . 174 25 Gun 173 | . 167 6 Cannon 13 | . 7 6 Launcher 13 | . . 13 Special . | . . . Kinetic 172 | . 160 12 Thermal 14 | . 14 . Explosive 13 | . . 13 Electromagnetic . | . . . Robot Hit Streak 10 | . 10 4 Robot Miss Streak 4 | . 3 4 Penetration Max . | . . . Secondary Targets 6 | . 6 . Max Gunslinging Chain 1 | . 1 . Shots Hit Robots 117 | . 106 11 Core Hits 86 | . 52 34 Critical Kills . | . . . Critical Parts Destroyed . | . . . Critical Strikes . | . . . Melee Attacks . | . . . Impact . | . . . Slashing . | . . . Piercing . | . . . Sneak Attacks . | . . . Combat Hostiles . | . . . Follow-up Attacks . | . . . Damage Inflicted 2343 | . 1318 1025 Guns 1304 | . 1279 25 Cannons 90 | . 39 51 Explosions 949 | . . 949 Melee . | . . . Ramming . | . . . Kinetic 1293 | . 1217 76 Thermal 101 | . 101 . Explosive 949 | . . 949 Electromagnetic . | . . . Impact . | . . . Slashing . | . . . Piercing . | . . . Highest Corruption 6 | . 1 6 Average Corruption 1 | . 1 1 Corruption Purged . | . . . Corruption Blocked . | . . . Effects 8 | . 8 . Message Errors 2 | . 2 . Matter Fused 1 | . 1 . Energy Discharges 3 | . 3 . Data Loss (minor) 2 | . 2 . Overload Shots . | . . . Overflow Damage 19 | . . 19 Projectiles . | . . . Explosions 19 | . . 19 Melee . | . . . Knockbacks 1 | . . 1 Impact . | . . . Kinetic 1 | . . 1 Secondary . | . . . Self-Inflicted Damage 212 | . . 212 Shots 7 | . . 7 Rammed . | . . . Targets Rammed . | . . . Kicked . | . . . Crushed . | . . . Highest Temperature 72 | . 72 5 Average Temperature 17 | . 19 2 Received Heat Transfer 246 | . 246 . Siege Activations . | . . . Martial Activations . | . . . Shielding Activations . | . . . Robots Disrupted . | . . . Combat Hostiles . | . . . Robots Corrupted . | . . . Combat Hostiles . | . . . Parts Fried . | . . . Impact Corruptions . | . . . Robots Melted . | . . . Combat Hostiles . | . . . Parts Melted . | . . . Heat Transferred 296 | . 296 . Parts Sabotaged . | . . . Parts Stolen . | . . . Parts Stripped . | . . . Power Chain Reactions . | . . . Alert | -11 -10 -10 ------- Run | Yrd Mat Min Maximum Alert Level 1 | . 1 . Low Security (%) 89 | . 88 100 Level 1 10 | . 11 . Level 2 . | . . . Level 3 . | . . . Level 4 . | . . . Level 5 . | . . . High Security . | . . . Max Security . | . . . Peak Influence 231 | . 231 85 Initial 16 | . . 16 Average 108 | . 114 43 Influence Increases 731 | . 594 137 Destroy 0b10 Robot/C 400 | . 340 60 Destroy 0b10 Robot/NC 90 | . 90 . Destroy Leader 100 | . 90 10 Successful Hack 29 | . 29 . Disable Machine 45 | . 45 . Destroy Structure 52 | . . 52 Lose Combat Pursuer 15 | . . 15 Influence Decreases 704 | . 552 152 Entered New Map 26 | . . 26 Time Decay 618 | . 542 76 Lost Part 60 | . 10 50 Squads Dispatched 6 | . 6 . Investigation 2 | . 2 . Extermination . | . . . Reinforcement 4 | . 4 . Assault . | . . . Garrison . | . . . Intercept . | . . . Searches Triggered . | . . . Construction Impeded . | . . . Haulers Reinforced . | . . . Active Scanning Responses . | . . . Cargo Convoy Interrupts . | . . . Stealth | -11 -10 -10 --------- Run | Yrd Mat Min Distress Signals 1 | . 1 . Communications Jammed . | . . . Distress Signals . | . . . Times Spotted 55 | . 29 26 Peak Tracking Total 20 | . 4 20 Tactical Retreats 1 | . . 1 Traps | -11 -10 -10 ------- Run | Yrd Mat Min Traps Triggered 5 | . 5 . Indirectly . | . . . Trap Hack Attempts . | . . . Triggered . | . . . Disarmed . | . . . Reprogrammed . | . . . Reused . | . . . Traps Extracted . | . . . Installed . | . . . Triggered . | . . . Machines | -11 -10 -10 ---------- Run | Yrd Mat Min Machines Disabled 3 | . 3 . Max in Single Turn 1 | . 1 . Machines Repaired . | . . . Machines Dismantled . | . . . Machines Sabotaged . | . . . Overloaded Fab Kills . | . . . Hacking | -11 -10 -10 --------- Run | Yrd Mat Min Machines Accessed 5 | . 5 . Terminals 4 | . 4 . Fabricators . | . . . Repair Stations 1 | . 1 . Recycling Units . | . . . Scanalyzers . | . . . Garrison Access . | . . . Total Hacks 16 | . 16 . Successful 7 | . 7 . Failed 9 | . 9 . Catastrophic . | . . . Database Lockouts . | . . . Manual 14 | . 14 . Terminals 14 | . 14 . Fabricators . | . . . Repair Stations 2 | . 2 . Recycling Units . | . . . Scanalyzers . | . . . Garrison Access . | . . . Terminal Hacks . | . . . Fabricator Hacks . | . . . Repair Station Hacks 1 | . 1 . Refit 1 | . 1 . Recycling Unit Hacks . | . . . Scanalyzer . | . . . Garrison Access Hacks . | . . . Unauthorized Hacks 6 | . 6 . Terminals 6 | . 6 . Assimilate 2 | . 2 . Botnet 3 | . 3 . Operators 1 | . 1 . Fabricators . | . . . Repair Stations . | . . . Recycling Units . | . . . Scanalyzers . | . . . Garrison Access . | . . . Data Cores Recovered . | . . . Used . | . . . Hacking Detections 4 | . 4 . Full Trace Events 1 | . 1 . Feedback Events . | . . . Feedback Blocked . | . . . Robot Schematics Acquired . | . . . Robots Built . | . . . Authchips . | . . . Time . | . . . Total Robot Build Rating . | . . . Part Schematics Acquired . | . . . Parts Built . | . . . Authchips . | . . . Time . | . . . Total Part Build Rating . | . . . Parts Repaired . | . . . Time . | . . . Parts Recycled . | . . . Recycled Matter . | . . . Retrieved Matter . | . . . Retrieved Components . | . . . Parts Scanalyzed . | . . . Part Schematics Acquired . | . . . Parts Damaged . | . . . Bothacking | -11 -10 -10 ------------ Run | Yrd Mat Min Used RIF Installer . | . . . Robots Hacked . | . . . Non-combat . | . . . Combat . | . . . Robot Hacks Applied . | . . . Relay Couplers Released . | . . . Fabnet Peak Effective % . | . . . Robots Rewired . | . . . Allies Hacked . | . . . Hacks Repelled . | . . . Allies | -11 -10 -10 -------- Run | Yrd Mat Min Total Allies . | . . . Largest Group . | . . . Highest-Rated Group . | . . . Highest-Rated Ally . | . . . Total Orders . | . . . Ally Attacks . | . . . Total Damage . | . . . Kills . | . . . Allies Corrupted . | . . . Allies Melted . | . . . Intel | -11 -10 -10 ------- Run | Yrd Mat Min Active Infowar (turns) . | . . . Robot Analysis Total . | . . . Derelict Logs Recovered . | . . . Drone Launches . | . . . Drone Recoveries . | . . . Exploration | -11 -10 -10 ------------- Run | Yrd Mat Min Turns Passed 1911 | . 1748 163 Spaces Moved 716 | 1 677 38 Core . | . . . Treads 715 | . 677 38 Legs 1 | 1 . . Wheels . | . . . Hover . | . . . Flight . | . . . Fastest Speed 120 | 120 160 320 Average Speed 220 | 120 214 320 Slowest Speed 320 | 120 320 320 Overloaded Moves . | . . . Propulsion Burnouts . | . . . Robots Hopped . | . . . Potential Cave-ins . | . . . Cave-ins Triggered . | . . . Exploration Rate (%) 37 | 2 93 18 Regions Visited 2 Branch Regions 1 Pre-discovered Areas . | . . . Known Exits Taken . | . . . Unknown Exits Taken 2 | 1 1 . Scrap Searched 1 | . . 1 Spaces Dug . | . . . Terrain Destroyed 76 | . . 76 Melee . | . . . Projectile . | . . . AOE 76 | . . 76 Terrain Rammed . | . . . Walls Destroyed . | . . . Machines Disabled . | . . . Actions | -11 -10 -10 --------- Run | Yrd Mat Min Total 856 | . 801 55 Wait 1 | . 1 . Move 714 | . 676 38 Hop . | . . . Pick Up 21 | . 19 2 Fast Attach 1 | . 1 . Attach 4 | . 4 . Detach . | . . . Swap 6 | . 4 2 Drop 9 | . 9 . Fire 100 | . 87 13 Melee . | . . . Ram . | . . . Kick . | . . . Crush . | . . . Escape Stasis . | . . . Rewire . | . . . Trap . | . . . Miscellaneous . | . . . Route ------- -11/Scrapyard -10/Materials (discovered 6 exits: [*Mat x3] / [*Min x2] / [*Sub]) -10/Mines History --------- Turn | Location | Event 1 | -11/Scrapyard | Discovered new exit (range 0) 1 | -11/Scrapyard | Entered Materials 249 | -10/Materials | Discovered new exit (range 15) 304 | -10/Materials | Build established: Mutant 321 | -10/Materials | Discovered new exit (range 3) 618 | -10/Materials | Discovered new exit (range 5) 727 | -10/Materials | Discovered new exit (range 10) 803 | -10/Materials | Discovered new exit (range 8) 1534 | -10/Materials | Discovered new exit (range 15) 1749 | -10/Materials | Entered Mines 1873 | -10/Mines | Assembled infested the area 1904 | -10/Mines | Core integrity fell below 50% 1910 | -10/Mines | Core integrity fell below 20% 1912 | -10/Mines | Destroyed self with Grenade Launcher Last Messages --------------- 01899_ Ion Engine destroyed. 01900_ as-27778 destroyed. 01900_ as-69917 destroyed. 01900_ as-03487 destroyed. 01901_ Lgt. Treads destroyed. 01903_ as-27117 destroyed. 01903_ as-91641 destroyed. 01905_ Lgt. Treads destroyed. 01905_ Backup Plating I destroyed. 01906_ as-31721 destroyed. 01906_ Destroyed Asb. Hover Unit. 01906_ as-02056 destroyed. 01906_ as-57552 destroyed. 01908_ The unstable cave ceiling collapses. 01909_ as-85859 destroyed. 01911_ C-30 ARC bursts open, deploying its payload. 01911_ D-53 Grenadier unfolds itself. 01911_ Grenade Launcher destroyed. 01911_ System corrupted by crushing effect (+5). 01912_ Destroyed Asb. Hover Unit. Map ----- +----------------------------------------------------+ | ?????????????????????????????????????????????????? | | ?????????????????????????????????????????????????? | | ?????????????????????????????????????????????????? | | ?????????????????????????????????????????????????? | | ?????????????????????????????????????????????????? | | ?????????????????????????????????????????????????? | | ?????????????????????????????????????????????????? | | ?????????????????????????????????????????????????? | | ?????????????????????????????????????????????????? | | ?????????????????????????????????????????????????? | | ?????????????????????????????????????????????????? | | ?????????????????????????????????????????????????? | | ?????????????????????????????????????????????????? | | ?????????????????????????????????????????????????? | | ?????????????????????????????????????????????????? | | ?????????????????????????????????????????????????? | | ?????????????????????????????????????????????????? | | ???????????????????????????????#####?????????????? | | ???????????????????????###?????# #?????????????? | | ??????????????????????? #????## #?????????????? | | ???????????????????????# #???## #?????????????? | | ???????????????????????# #???# ##????????????? | | ??????????????????????## ##### ###??????????? | | ????????????????????### ## #####??????? | | ???????????????????## ##### #? | | ???????????????????# @ uu d % #? | | ??????????????????# a ### rd #### | | ?????????????????# #?## ### #?????? | | ???????????????# #?## ##?## ##????? | | ??????????????# #a#??####???# ##??## | | ??????????????# ?????????# #### | | ??????????????## ?##????????# % | | ???????????????# % ####??????????# ### | | ???????????????# % #?????????????## #?# | | ???????????????# ### #??????????????### ##?# | | ???????????????# ??# a ?????????????????####??# | | ??????????????? ???# a #????????????????????#### | | ????????????????????# %#??????????????????#### | | ???????????????????? ?????????????????### | | ????????????????????? ?????????????????# | | ????????????????????? ?????????????????# | | ??????????????????????????????????????# | | ??????????????????????????????????? ### ## | | ?????????????????????????????????? ???# ?#### | | ??????????????????????????????????? ?????#?????? | | ???????????????????????????????????? ????????????? | | ?????????????????????????????????????????????????? | | ?????????????????????????????????????????????????? | | ?????????????????????????????????????????????????? | | ?????????????????????????????????????????????????? | +----------------------------------------------------+ Best States ------------- Heat Dissipation 25 Energy Generation 10 Energy Capacity 250 Matter Stores 300 Matter Capacity 300 Sight Range 16 Terrain Scan Density 10 Armor Coverage 80 Weapon Shielding 33 Evasion (%) 40 Recoil Reduction 2 Item Schematics ----------------- None Robot Schematics ------------------ None Fabricated ------------ Nothing Repaired ---------- Nothing Alien Tech Used ----------------- None Achievements -------------- None Challenges ------------ None Game ------ Seed OmegaProjectileBeacon Manual? 0 Play Time 00:09:54 Cumulative 159.0 hours Start 2025.07.01 @ 12:20:33 End 2025.07.01 @ 12:29:29 Sessions 1 Manual Loads 0 Difficulty Rogue Special Mode None Game No. 307 Rogue 307 Adventurer 0 Explorer 0 Win Type - Total 0 Types 0/0/0/0/0/0/0/0/0/0 Lore% 44 Gallery% 39 Achievement% 36 Wizard Run 0 Options --------- Layout 0 ASCII 0 Keyboard 0 Movement Mouse Keybinds 0 Fullscreen 1 Font 24/Smallcaps Map View 91x25 Zoom Use 95% Tactical HUD 1 Map Filters NONE Filters NONE Steam 1 RUN: 30ba2c97-e49e-4f6f-a63b-c7f3aedb3e07